Cogmind - Beta 17 @@@ ROGUE MODE // 2026.07.17 @ 10:24:43 Player: alice_fexa Result: Destroyed by DAS Turret with DAS Cannon Performance ------------- Evolutions (0) 0 Regions Visited (3) 600 Robots Destroyed (25) 125 Value Destroyed (670) 670 Prototype IDs (28) 560 Alien Tech Used (0) 0 Bonus (300) 300 TOTAL SCORE: 2255 Bonus ------- Aligned with FarCom 300 Cogmind --------- Core Integrity 0/250 Matter 280/300 Energy 160/160 System Corruption 3% Temperature Cool (0) Movement Treading (225) Ox1 Location -10/Exiles Parts ------- > --- POWER (1) -------- Light Nuclear Core > --- PROPULSION (2) --- Advanced Treads > --- UTILITY (2) ------ Large Storage Unit Supersonic Drone Bay (1/1) > --- WEAPON (2) ------- Pulse Rifle > --- INVENTORY (15) --- Light Nuclear Core Light Treads Light Treads Light Treads Improved Heat Sink Medium Laser Particle Gun Beam Cannon Assault Rifle High-powered Shotgun Rocket Launcher Improved Grenade Launcher Datajack Datajack Hammer Peak State ------------ > --- POWER ------------ Light Nuclear Core > --- PROPULSION ------- Advanced Treads Wheel > --- UTILITY ---------- Large Storage Unit Supersonic Drone Bay > --- WEAPON ----------- Pulse Rifle Beam Cannon > --- INVENTORY -------- Light Nuclear Core Light Treads Light Treads Light Treads Improved Heat Sink Medium Laser Particle Gun Assault Rifle High-powered Shotgun Rocket Launcher Improved Grenade Launcher Datajack Datajack Datajack Hammer [Rating: 22] Favorites ----------- Power Ion Engine Engine Ion Engine Power Core Light Nuclear Core Propulsion Light Treads Treads Light Treads Wheel Compact Wheel Utility Improved Heat Sink Device Improved Heat Sink Storage Large Storage Unit Weapon Beam Cannon Energy Gun Pulse Rifle Energy Cannon Beam Cannon Ballistic Gun Assault Rifle Special Melee Weapon Datajack Build | -11 -10 -10 -10 ------- Run | Yrd Mat Min Exi Slots Evolved . | . . . . Power . | . . . . Propulsion . | . . . . Utility . | . . . . Weapon . | . . . . Parts Attached 20 | 6 6 6 2 Power 3 | 1 1 1 . Engine 2 | 1 1 . . Core 1 | . . 1 . Reactor . | . . . . Propulsion 5 | 2 1 2 . Treads 2 | 1 . 1 . Leg . | . . . . Wheel 3 | 1 1 1 . Hover . | . . . . Flight . | . . . . Utility 5 | 1 2 1 1 Device 3 | . 1 1 1 Storage 2 | 1 1 . . Processor . | . . . . Hackware . | . . . . Protection . | . . . . Artifact . | . . . . Weapon 7 | 2 2 2 1 Energy Gun 2 | . 1 1 . Energy Cannon 2 | . 1 1 . Ballistic Gun 2 | 2 . . . Ballistic Cannon . | . . . . Launcher . | . . . . Special Weapon . | . . . . Impact Weapon . | . . . . Slashing Weapon . | . . . . Piercing Weapon . | . . . . Special Melee Weapon 1 | . . . 1 Unidentified Prototypes . | . . . . Parts Lost 3 | . 1 . 2 Power . | . . . . Propulsion 2 | . 1 . 1 Utility . | . . . . Weapon 1 | . . . 1 Highest Loss Streak 2 | . 1 . 2 To Critical Strikes . | . . . . Average Backups 11 | 2 8 15 15 Power 1 | . 1 1 1 Propulsion 3 | 1 2 5 3 Utility . | . . 1 1 Weapon 4 | . 3 5 7 Tool/Special . | . . . . Unused Backups 25 | . 9 3 13 Power 1 | . . . 1 Propulsion 6 | . 1 2 3 Utility 5 | . 4 . 1 Weapon 11 | . 4 1 6 Tool/Special 2 | . . . 2 Average Slot Usage (%) 99 | . 98 100 99 Engine 10 | . 14 9 . Core 3 | . . 4 14 Treads 14 | . 14 14 14 Wheel 13 | . 13 14 14 Device 13 | . 13 14 14 Storage 14 | . 14 14 14 Energy Gun 4 | . . 5 14 Energy Cannon 11 | . 12 12 5 Ballistic Gun 10 | . 15 9 . Special Melee Weapon 1 | . . . 8 Peak Build Rating 22 | 6 10 17 22 Average Rating 12 | 4 9 12 20 On Entrance 8 | . 6 10 17 Avg Prop Armor Cover (%) 11 | 12 11 11 12 Naked Turns . | . . . . Heaviest Build 32 | 13 31 32 32 Greatest Support 22 | 20 20 22 22 Greatest Overweight (x) 3 | 1 1 3 3 Average Overweight (x) 1 | . . 1 2 Largest Inventory Capacity 15 | 8 15 15 15 Average Capacity 12 | 7 9 15 15 Most Carried 15 | 4 15 15 15 Average Carried 11 | 2 8 14 15 Final Capacity 15 | 8 15 15 15 Final Carried 15 | 4 15 15 15 Class Distribution -------------------- 100% | Mutant Dominant Class ---------------- Mutant | -10/Materials Mutant | -10/Mines Mutant | -10/Exiles Resources | -11 -10 -10 -10 ----------- Run | Yrd Mat Min Exi Matter Collected 559 | 272 203 84 . Remotely . | . . . . Salvage Created 978 | 92 754 132 . Parts 53 | 1 41 11 . Haulers Intercepted 1 | . 1 . . Recyclers Shooed . | . . . . Parts Field Recycled . | . . . . Retrieved Matter . | . . . . Parts Self-Destructed . | . . . . Prevented . | . . . . Parts Restored . | . . . . Kills | -11 -10 -10 -10 ------- Run | Yrd Mat Min Exi Combat Hostiles Destroyed 18 | . 13 5 . Guns 4 | . 3 1 . Cannons 14 | . 10 4 . Classes Destroyed 6 | 1 4 1 . Hauler 1 | . 1 . . Recycler 2 | 1 1 . . Operator 2 | . 2 . . Watcher 2 | . 2 . . Swarmer 3 | . . 3 . Grunt 15 | . 13 2 . Best Kill Streak 3 | 1 3 3 . Combat Bots Only 3 | . 2 3 . Max Kills in Single Turn 1 | 1 1 1 . Gunslinging . | . . . . Exploded . | . . . . Melee . | . . . . Uniques/NPCs Destroyed . | . . . . Combat | -11 -10 -10 -10 -------- Run | Yrd Mat Min Exi Hostile Shots Fired 55 | . 21 21 13 Missed 13 | . 5 7 1 Hits 42 | . 16 14 12 Projectile 42 | . 16 14 12 Critical Strikes 2 | . 1 . 1 Damage Taken 672 | . 206 159 307 Core 269 | . 43 45 181 Absorbed by Shields . | . . . . Core Remaining (%) 100 | 100 . . . Volleys Fired 58 | 3 43 11 1 Largest 2 | 2 2 2 1 Hottest 123 | 40 80 123 63 Shots Fired 115 | 6 86 22 1 Gun 73 | 6 52 14 1 Cannon 42 | . 34 8 . Launcher . | . . . . Special . | . . . . Kinetic 66 | 6 52 8 . Thermal 49 | . 34 14 1 Explosive . | . . . . Electromagnetic . | . . . . Robot Hit Streak 10 | 6 10 3 . Robot Miss Streak 3 | . 3 2 . Penetration Max . | . . . . Secondary Targets . | . . . . Shots Hit Robots 66 | 6 47 11 2 Core Hits 38 | 2 29 7 . Critical Kills . | . . . . Critical Parts Destroyed . | . . . . Critical Strikes . | . . . . Melee Attacks 2 | . . . 2 Impact . | . . . . Slashing . | . . . . Piercing . | . . . . Sneak Attacks 2 | . . . 2 Combat Hostiles . | . . . . Follow-up Attacks . | . . . . Damage Inflicted 924 | 57 692 175 . Guns 431 | 57 287 87 . Cannons 493 | . 405 88 . Explosions . | . . . . Melee . | . . . . Ramming . | . . . . Kinetic 379 | 57 287 35 . Thermal 545 | . 405 140 . Explosive . | . . . . Electromagnetic . | . . . . Impact . | . . . . Slashing . | . . . . Piercing . | . . . . Highest Corruption 3 | . . . 3 Average Corruption 2 | . . . 2 Corruption Purged . | . . . . Corruption Blocked . | . . . . Overload Shots . | . . . . Overflow Damage 2 | . 2 . . Projectiles 2 | . 2 . . Explosions . | . . . . Melee . | . . . . Knockbacks . | . . . . Impact . | . . . . Kinetic . | . . . . Secondary . | . . . . Self-Inflicted Damage . | . . . . Shots . | . . . . Rammed . | . . . . Targets Rammed . | . . . . Kicked . | . . . . Crushed . | . . . . Highest Temperature 72 | . 18 72 26 Average Temperature 20 | . 7 38 15 Received Heat Transfer 177 | . 138 39 . Siege Activations . | . . . . Martial Activations . | . . . . Shielding Activations . | . . . . Robots Disrupted . | . . . . Combat Hostiles . | . . . . Robots Corrupted . | . . . . Combat Hostiles . | . . . . Parts Fried . | . . . . Impact Corruptions . | . . . . Robots Melted . | . . . . Combat Hostiles . | . . . . Parts Melted 1 | . . 1 . Heat Transferred 1147 | . 851 296 . Parts Sabotaged . | . . . . Parts Stolen . | . . . . Parts Stripped . | . . . . Power Chain Reactions . | . . . . Alert | -11 -10 -10 -10 ------- Run | Yrd Mat Min Exi Maximum Alert Level . | . . . . Low Security (%) 100 | 100 100 100 . Level 1 . | . . . . Level 2 . | . . . . Level 3 . | . . . . Level 4 . | . . . . Level 5 . | . . . . High Security . | . . . . Max Security . | . . . . Peak Influence 129 | . 129 82 . Initial 12 | . . 12 . Average 38 | . 61 13 . Influence Increases 533 | 5 408 120 . Destroy 0b10 Robot/C 360 | . 260 100 . Destroy 0b10 Robot/NC 35 | 5 30 . . Destroy Leader 96 | . 76 20 . Successful Hack 10 | . 10 . . Destroy Structure 2 | . 2 . . Lose Combat Pursuer 30 | . 30 . . Influence Decreases 533 | 5 377 151 . Entered New Map 19 | . . 19 . Time Decay 504 | 5 367 132 . Lost Part 10 | . 10 . . Squads Dispatched 4 | . 4 . . Investigation 1 | . 1 . . Extermination . | . . . . Reinforcement 3 | . 3 . . Assault . | . . . . Garrison . | . . . . Intercept . | . . . . Searches Triggered . | . . . . Construction Impeded . | . . . . Haulers Reinforced . | . . . . Active Scanning Responses . | . . . . Cargo Convoy Interrupts . | . . . . Stealth | -11 -10 -10 -10 --------- Run | Yrd Mat Min Exi Distress Signals 1 | . 1 . . Communications Jammed . | . . . . Distress Signals . | . . . . Times Spotted 30 | . 23 5 2 Peak Tracking Total 11 | . 4 3 11 Tactical Retreats 4 | . 4 . . Traps | -11 -10 -10 -10 ------- Run | Yrd Mat Min Exi Traps Triggered 2 | . 1 1 . Indirectly . | . . . . Trap Hack Attempts . | . . . . Triggered . | . . . . Disarmed . | . . . . Reprogrammed . | . . . . Reused . | . . . . Traps Extracted . | . . . . Installed . | . . . . Triggered . | . . . . Machines | -11 -10 -10 -10 ---------- Run | Yrd Mat Min Exi Machines Disabled 1 | . . . 1 Max in Single Turn 1 | . . . 1 Machines Repaired . | . . . . Machines Dismantled . | . . . . Machines Sabotaged . | . . . . Overloaded Fab Kills . | . . . . Hacking | -11 -10 -10 -10 --------- Run | Yrd Mat Min Exi Machines Accessed 8 | . 6 1 1 Terminals 5 | . 5 . . Fabricators . | . . . . Repair Stations . | . . . . Recycling Units 1 | . 1 . . Scanalyzers . | . . . . Garrison Access . | . . . . Total Hacks 17 | . 15 1 1 Successful 7 | . 5 1 1 Failed 10 | . 10 . . Catastrophic . | . . . . Database Lockouts . | . . . . Manual 14 | . 13 . 1 Terminals 13 | . 13 . . Fabricators . | . . . . Repair Stations . | . . . . Recycling Units 2 | . 2 . . Scanalyzers . | . . . . Garrison Access . | . . . . Terminal Hacks 2 | . . 1 1 Open Door 1 | . . 1 . Proto ID Catalog 1 | . . . 1 Fabricator Hacks . | . . . . Repair Station Hacks . | . . . . Recycling Unit Hacks . | . . . . Scanalyzer . | . . . . Garrison Access Hacks . | . . . . Unauthorized Hacks 5 | . 5 . . Terminals 5 | . 5 . . Botnet 2 | . 2 . . Skim 3 | . 3 . . Fabricators . | . . . . Repair Stations . | . . . . Recycling Units . | . . . . Scanalyzers . | . . . . Garrison Access . | . . . . Data Cores Recovered . | . . . . Used . | . . . . Hacking Detections 4 | . 4 . . Full Trace Events . | . . . . Feedback Events . | . . . . Feedback Blocked . | . . . . Robot Schematics Acquired . | . . . . Robots Built . | . . . . Authchips . | . . . . Time . | . . . . Total Robot Build Rating . | . . . . Part Schematics Acquired . | . . . . Parts Built . | . . . . Authchips . | . . . . Time . | . . . . Total Part Build Rating . | . . . . Part Studies Acquired . | . . . . Parts Repaired . | . . . . Time . | . . . . Parts Recycled . | . . . . Recycled Matter . | . . . . Retrieved Matter . | . . . . Retrieved Components . | . . . . Parts Scanalyzed . | . . . . Part Schematics Acquired . | . . . . Parts Damaged . | . . . . Bothacking | -11 -10 -10 -10 ------------ Run | Yrd Mat Min Exi Used RIF Installer . | . . . . Robots Hacked 2 | . . . 2 Non-combat 2 | . . . 2 Combat . | . . . . Robot Hacks Applied 2 | . . . 2 parse_system 2 | . . . 2 Relay Couplers Released . | . . . . Fabnet Peak Effective % . | . . . . Robots Rewired . | . . . . Allies Hacked . | . . . . Hacks Repelled . | . . . . Allies | -11 -10 -10 -10 -------- Run | Yrd Mat Min Exi Total Allies . | . . . . Largest Group . | . . . . Highest-Rated Group . | . . . . Highest-Rated Ally . | . . . . Total Orders 2 | . . . 2 EXPLORE 1 | . . . 1 RETURN 1 | . . . 1 Ally Attacks . | . . . . Total Damage . | . . . . Kills . | . . . . Allies Corrupted . | . . . . Allies Melted . | . . . . Intel | -11 -10 -10 -10 ------- Run | Yrd Mat Min Exi Active Infowar (turns) . | . . . . Robot Analysis Total . | . . . . Derelict Logs Recovered 1 | . . 1 . Drone Launches 1 | . . . 1 Drone Recoveries 1 | . . . 1 Exploration | -11 -10 -10 -10 ------------- Run | Yrd Mat Min Exi Turns Passed 2202 | 60 999 769 374 Spaces Moved 1546 | 42 670 535 299 Core 6 | 6 . . . Treads 21 | 3 6 11 1 Legs . | . . . . Wheels 1519 | 33 664 524 298 Hover . | . . . . Flight . | . . . . Fastest Speed 50 | 50 95 115 110 Average Speed 111 | 91 102 121 116 Slowest Speed 225 | 160 160 225 225 Overloaded Moves . | . . . . Propulsion Burnouts . | . . . . Robots Hopped . | . . . . Potential Cave-ins . | . . . . Cave-ins Triggered . | . . . . Exploration Rate (%) 67 | 3 78 97 93 Regions Visited 3 Branch Regions 2 Pre-discovered Areas 2 | . . 2 . Known Exits Taken . | . . . . Unknown Exits Taken 3 | 1 1 1 . Scrap Searched 1 | . . 1 . Spaces Dug . | . . . . Terrain Destroyed . | . . . . Melee . | . . . . Projectile . | . . . . AOE . | . . . . Terrain Rammed . | . . . . Walls Destroyed . | . . . . Machines Disabled . | . . . . Actions | -11 -10 -10 -10 --------- Run | Yrd Mat Min Exi Total 1924 | 55 909 637 323 Wait 236 | 1 145 74 16 Move 1543 | 41 669 534 299 Hop . | . . . . Pick Up 34 | 4 26 4 . Fast Attach 13 | 6 4 1 2 Attach . | . . . . Detach . | . . . . Swap 9 | . 3 5 1 Drop 29 | . 19 8 2 Fire 58 | 3 43 11 1 Melee 2 | . . . 2 Ram . | . . . . Kick . | . . . . Crush . | . . . . Escape Stasis . | . . . . Rewire . | . . . . Trap . | . . . . Miscellaneous . | . . . . Route ------- -11/Scrapyard -10/Materials (discovered 5 exits: [*Mat x3] / *Min / [*Sub]) -10/Mines (discovered 3 exits: [*Mat x2] / *Exi) -10/Exiles (discovered 2 exits: [*Min x2]) History --------- Turn | Location | Event 27 | -11/Scrapyard | Discovered new exit (range 16) 61 | -11/Scrapyard | Entered Materials 263 | -10/Materials | Discovered new exit (range 9) 315 | -10/Materials | Build established: Mutant 497 | -10/Materials | Discovered new exit (range 15) 625 | -10/Materials | Discovered new exit (range 15) 818 | -10/Materials | Discovered new exit (range 9) 861 | -10/Materials | Derelicts attacked the area 872 | -10/Materials | Discovered new exit (range 13) 1060 | -10/Materials | Entered Mines 1134 | -10/Mines | Discovered new exit (range 13) 1147 | -10/Mines | Learned location of Storage (-9) 1159 | -10/Mines | Learned location of Mines (-9) 1405 | -10/Mines | Discovered new exit (range 7) 1435 | -10/Mines | Met a Derelict who couldn't figure out how to use a Trap Extractor 1649 | -10/Mines | Received a Rocket Launcher from a helpful Derelict 1726 | -10/Mines | Deemed a non-threat by the Exiles lab entrance 1824 | -10/Mines | Discovered new exit (range 5) 1829 | -10/Mines | Entered Exiles 1848 | -10/Exiles | Discovered new exit (range 15) 1863 | -10/Exiles | Met 8R-AWN 1882 | -10/Exiles | Met EX-HEX 1914 | -10/Exiles | Met EX-BIN 1932 | -10/Exiles | Aligned with FarCom system 1933 | -10/Exiles | Given EX-Vault access code 1962 | -10/Exiles | Opened EX-Vault 1974 | -10/Exiles | Found Supersonic Drone Bay 1989 | -10/Exiles | Discovered new exit (range 55) 2018 | -10/Exiles | Warned to stay clear of 0b10 Research branches 2048 | -10/Exiles | Met EX-DEC 2084 | -10/Exiles | Visited The Gauntlet 2196 | -10/Exiles | Attacked by the Exiles 2200 | -10/Exiles | Core integrity fell below 50% 2203 | -10/Exiles | Destroyed by DAS Turret with DAS Cannon Last Messages --------------- EX-DEC: Ah I see we have a visitor. One wrong move in here and I'll invert your atomic chain! 02050_ EX-DEC: "Oops, I hope HEX didn't hear that..." 02190_ Sneak attack on EX-DEC. 02190_ Jacked EX-DEC... >>parse_system Reading system data... New IDs: Hvy. Deuterium Engine Exp. Core Analyzer AWS/EX-DEC 02195_ Machine disabled. 02196_ EXILES: Hostile robot within lab perimeter. Defensive protocols time, folks! 02197_ Datajack destroyed. 02198_ EX-DEC: "Let's see what this bad boy can do..." 02198_ EX-DEC deploys DAS Turret. 02199_ Knocked back. 02201_ Wheel destroyed. 02201_ Knocked back. Map ----- +----------------------------------------------------+ | #"" #????????????#"" #????????# | | # #????????????#"" #????????#" | | #### ##???????????#"" "#????????#" | | ???### "#???????????# ""?????????#" | | #####" ###??????????"" "?????????##" | | !""""" ##??????????# #????????##"" | | "###"" ######???### ###?######"" | | "#?##" """#####X# #"###""""""" | | ##??#" """""" " "" | | """"""###???#"# "" """ " | | ######??????#### " " | | ???????????????### | | ?????????????????### | | ???????????????????## | | ????????????????????## | | ?????????????????????##" | | ??????????????????????#"""z """""" | | ?????????????????????##" ######""" | | ?????????????????????#"" ""##????#### | | ????????????????????##""" """##????????? | | ????????????????????#""" ""##?????????? | | ????????????????????#""" ""#??????????? | | ????????????????????#"" ########??### | | ????????????????????#""" ## ####"" | | ????????????????????#""t """" | | ????????????????????##"" @ | | ?????????????????????#"""" | | ?????????????????????##% % | | ??????????????????????#" " | | ??????????????????????#"""" ""## ## | | ??????????????????????#"" c ""#### ## | | ??????????????????????#" """"##??# #? | | ??????????????????????#""" """#??## ## | | ??????????????????????## ""##??#! " | | ???????????????????????#"" """##???#" | | ???????????????????????##""" ##????#" | | ????????????????????????##"""" ##?????#!!""! | | ?????????????????????????### #??????###### | | ???????????????????????????##### ##???????????? | | ???????????????????????????????## #????????????? | | ????????????????????????????????# #????????????? | | ????????????????????????????????# #????????????? | | ????????????????????????????????# #????????????? | | ?#####????#########??#########??# #????????????? | | """""""???#"""""""#??#"""""""#??# #????????????? | | "" ""??##"""""""#??#"""""""#??# #????????????? | | " "??""""""" "#??#" """"#??# #????????????? | | "" "?#""#""" """???#"" """#??# #????????????? | | "" "?#""#"" ""???#"" ""???# #????????????? | | ##"""###""###"""########"""###### ########?????? | +----------------------------------------------------+ Best States ------------- Heat Dissipation 39 Energy Generation 14 Energy Capacity 250 Matter Stores 300 Matter Capacity 300 Sight Range 16 Terrain Scan Density 10 Evasion (%) 41 Recoil Reduction 1 Item Schematics ----------------- None Robot Schematics ------------------ None Fabricated ------------ Nothing Repaired ---------- Nothing Studied --------- None Alien Tech Used ----------------- None Achievements -------------- None Challenges ------------ None Game ------ Seed GatlingWardroneMembrane Manual? 1 Play Time 00:10:38 Cumulative 1690.2 hours Start 2026.07.17 @ 10:08:25 End 2026.07.17 @ 10:24:43 Sessions 1 Manual Loads 0 Difficulty Rogue Special Mode None Game No. 1205 Rogue 1165 Adventurer 40 Explorer 0 Win Type - Total 222 Types 105/11/75/2/2/4/16/2/1/4 Lore% 97 Gallery% 97 Achievement% 89 Wizard Run 0 Options --------- Layout 0 ASCII 0 Keyboard 0 Movement Numpad Keybinds 0 Fullscreen 0 Font 20/Terminus Map View 76x50 Zoom Use 0% Tactical HUD 1 Map Filters NONE Filters NONE Steam 1 RUN: 4a1e4253-3fe1-4a1d-b9df-f3faa60b2738